Cogmind - Beta 14 @@@ ROGUE MODE // 2024.08.25 @ 22:51:08 Player: Palikka Result: Destroyed by FG-MCO(R) with Subdweller Machine Gun Performance ------------- Evolutions (0) 0 Regions Visited (2) 400 Robots Destroyed (24) 120 Value Destroyed (449) 449 Prototype IDs (0) 0 Alien Tech Used (0) 0 Bonus (0) 0 TOTAL SCORE: 969 Bonus ------- None Cogmind --------- Core Integrity 0/250 Matter 300/300 Energy 200/200 System Corruption 0% Temperature Cool (0) Movement Treading (160) Location -10/Subcaves Parts ------- > --- POWER (1) -------- Subdweller Power Source > --- PROPULSION (2) --- Light Treads Light Treads > --- UTILITY (2) ------ Large Storage Unit Structural Scanner > --- WEAPON (2) ------- Light Assault Rifle Improved Light Cannon > --- INVENTORY (15) --- Improved Ion Engine Light Treads Improved Heat Sink Huge Storage Unit Signal Interpreter Seismic Detector Improved Targeting Computer Light Armor Plating Scrap Shield Trap Extractor (0/4) Subdweller Beam Cannon Light Cannon Improved Light Cannon Grenade Launcher Peak State ------------ > --- POWER ------------ Improved Ion Engine > --- PROPULSION ------- Light Treads Light Treads > --- UTILITY ---------- Large Storage Unit Seismic Detector > --- WEAPON ----------- Light Assault Rifle Improved Light Cannon > --- INVENTORY -------- Improved Ion Engine Light Treads Improved Heat Sink Disposable Heat Sink Huge Storage Unit Structural Scanner Signal Interpreter Improved Targeting Computer Light Armor Plating Trap Extractor EM Pulse Gun Light Cannon Improved Light Cannon Grenade Launcher [Rating: 11] Favorites ----------- Power Improved Ion Engine Engine Improved Ion Engine Propulsion Light Treads Treads Light Treads Leg Aluminum Leg Wheel Compact Wheel Utility Large Storage Unit Device Seismic Detector Storage Large Storage Unit Weapon Light Assault Rifle Energy Gun Small Laser Ballistic Gun Light Assault Rifle Ballistic Cannon Improved Light Cannon Build | -11 -10 -10 ------- Run | Yrd Mat Sub Slots Evolved . | . . . Power . | . . . Propulsion . | . . . Utility . | . . . Weapon . | . . . Parts Attached 21 | 5 14 2 Power 3 | 1 1 1 Engine 3 | 1 1 1 Core . | . . . Reactor . | . . . Propulsion 7 | 2 5 . Treads 5 | 2 3 . Leg 1 | . 1 . Wheel 1 | . 1 . Hover . | . . . Flight . | . . . Utility 6 | 1 4 1 Device 4 | . 3 1 Storage 2 | 1 1 . Processor . | . . . Hackware . | . . . Protection . | . . . Artifact . | . . . Weapon 5 | 1 4 . Energy Gun 1 | . 1 . Energy Cannon . | . . . Ballistic Gun 3 | 1 2 . Ballistic Cannon 1 | . 1 . Launcher . | . . . Special Weapon . | . . . Impact Weapon . | . . . Slashing Weapon . | . . . Piercing Weapon . | . . . Special Melee Weapon . | . . . Unidentified Prototypes . | . . . Parts Lost 7 | . 6 1 Power 1 | . . 1 Propulsion 4 | . 4 . Utility 1 | . 1 . Weapon 1 | . 1 . Highest Loss Streak 2 | . 2 1 To Critical Strikes . | . . . Average Slot Usage (%) 94 | . 93 98 Engine 13 | . 14 12 Treads 23 | . 22 28 Leg 2 | . 3 . Device 13 | . 13 14 Storage 14 | . 14 14 Energy Gun 3 | . 4 . Ballistic Gun 17 | . 18 14 Ballistic Cannon 3 | . . 14 Peak Build Rating 11 | 5 11 11 Average Rating 9 | 4 9 10 On Entrance 5 | . 5 11 Naked Turns . | . . . Heaviest Build 33 | 12 33 33 Greatest Support 40 | 40 40 40 Greatest Overweight (x) 2 | 2 2 . Average Overweight (x) . | . . . Largest Inventory Capacity 15 | 8 15 15 Average Capacity 12 | 7 12 15 Most Carried 15 | 7 15 15 Average Carried 11 | 4 10 14 Final Capacity 15 | 8 15 15 Final Carried 15 | 7 14 15 Class Distribution -------------------- 100% | Mutant Dominant Class ---------------- Mutant | -10/Materials Mutant | -10/Subcaves Resources | -11 -10 -10 ----------- Run | Yrd Mat Sub Matter Collected 632 | 198 406 28 Remotely . | . . . Salvage Created 819 | . 819 . Parts 51 | . 51 . Haulers Intercepted 2 | . 2 . Recyclers Shooed 1 | . 1 . Parts Field Recycled . | . . . Retrieved Matter . | . . . Parts Self-Destructed 5 | . . 5 Prevented . | . . . Kills | -11 -10 -10 ------- Run | Yrd Mat Sub Combat Hostiles Destroyed 17 | . 17 . Guns 17 | . 17 . Classes Destroyed 6 | . 6 . Worker 2 | . 2 . Hauler 2 | . 2 . Recycler 1 | . 1 . Watcher 2 | . 2 . Swarmer 9 | . 9 . Grunt 8 | . 8 . Best Kill Streak 6 | . 6 . Combat Bots Only 6 | . 6 . Max Kills in Single Turn 1 | . 1 . Gunslinging . | . . . Exploded . | . . . Melee . | . . . Uniques/NPCs Destroyed . | . . . Combat | -11 -10 -10 -------- Run | Yrd Mat Sub Hostile Shots Fired 131 | . 126 5 Missed 33 | . 32 1 Damage Taken 1226 | . 1112 114 Core 252 | . 229 23 Absorbed by Shields . | . . . Core Remaining (%) 100 | 100 . . Volleys Fired 94 | . 92 2 Largest 2 | . 2 1 Hottest 60 | . 60 39 Shots Fired 180 | . 178 2 Gun 175 | . 175 . Cannon 5 | . 3 2 Launcher . | . . . Special . | . . . Kinetic 123 | . 121 2 Thermal 57 | . 57 . Explosive . | . . . Electromagnetic . | . . . Robot Hit Streak 12 | . 12 . Robot Miss Streak 4 | . 4 . Penetration Max . | . . . Secondary Targets 1 | . 1 . Max Gunslinging Chain 1 | . 1 . Shots Hit Robots 120 | . 120 . Core Hits 41 | . 41 . Critical Kills 2 | . 2 . Critical Parts Destroyed . | . . . Critical Strikes 2 | . 2 . Destroy 2 | . 2 . Melee Attacks . | . . . Impact . | . . . Slashing . | . . . Piercing . | . . . Sneak Attacks . | . . . Combat Hostiles . | . . . Follow-up Attacks . | . . . Damage Inflicted 1479 | . 1479 . Guns 1262 | . 1262 . Cannons 38 | . 38 . Explosions 179 | . 179 . Melee . | . . . Ramming . | . . . Kinetic 869 | . 869 . Thermal 610 | . 610 . Explosive . | . . . Electromagnetic . | . . . Impact . | . . . Slashing . | . . . Piercing . | . . . Highest Corruption . | . . . Average Corruption . | . . . Corruption Purged . | . . . Corruption Blocked . | . . . Overload Shots . | . . . Overflow Damage 115 | . 115 . Projectiles . | . . . Explosions 115 | . 115 . Melee . | . . . Knockbacks . | . . . Impact . | . . . Kinetic . | . . . Secondary . | . . . Self-Inflicted Damage 109 | . 109 . Shots 1 | . 1 . Rammed . | . . . Targets Rammed . | . . . Kicked . | . . . Crushed . | . . . Highest Temperature 123 | . 123 . Average Temperature 33 | . 33 . Received Heat Transfer 468 | . 444 24 Siege Activations . | . . . Robots Corrupted . | . . . Combat Hostiles . | . . . Parts Fried . | . . . Impact Corruptions . | . . . Robots Melted . | . . . Combat Hostiles . | . . . Parts Melted 1 | . 1 . Heat Transferred 1075 | . 1075 . Parts Sabotaged . | . . . Parts Stolen . | . . . Parts Stripped . | . . . Power Chain Reactions . | . . . Alert | -11 -10 -10 ------- Run | Yrd Mat Sub Peak Influence 306 | . 306 . Initial . | . . . Average 100 | . 106 . Maximum Alert Level 1 | . 1 . Low Security (%) 82 | 100 81 . Level 1 17 | . 18 . Level 2 . | . . . Level 3 . | . . . Level 4 . | . . . Level 5 . | . . . High Security . | . . . Max Security . | . . . Squads Dispatched 2 | . 2 . Investigation . | . . . Extermination . | . . . Reinforcement 2 | . 2 . Assault . | . . . Garrison . | . . . Intercept . | . . . Searches Triggered . | . . . Construction Impeded . | . . . Haulers Reinforced . | . . . Active Scanning Responses . | . . . Cargo Convoy Interrupts . | . . . Stealth | -11 -10 -10 --------- Run | Yrd Mat Sub Distress Signals 1 | . 1 . Communications Jammed . | . . . Distress Signals . | . . . Times Spotted 36 | . 29 7 Peak Tracking Total 6 | . 6 4 Tactical Retreats 3 | . 2 1 Traps | -11 -10 -10 ------- Run | Yrd Mat Sub Traps Triggered . | . . . Indirectly . | . . . Trap Hack Attempts . | . . . Triggered . | . . . Disarmed . | . . . Reprogrammed . | . . . Reused . | . . . Traps Extracted . | . . . Installed . | . . . Triggered . | . . . Machines | -11 -10 -10 ---------- Run | Yrd Mat Sub Machines Disabled 3 | . 3 . Max in Single Turn 3 | . 3 . Machines Repaired . | . . . Machines Dismantled . | . . . Machines Sabotaged . | . . . Overloaded Fab Kills . | . . . Hacking | -11 -10 -10 --------- Run | Yrd Mat Sub Machines Accessed 5 | . 5 . Terminals 5 | . 5 . Fabricators . | . . . Repair Stations . | . . . Recycling Units . | . . . Scanalyzers . | . . . Garrison Access . | . . . Total Hacks 15 | . 15 . Successful 11 | . 11 . Failed 4 | . 4 . Catastrophic 2 | . 2 . Database Lockouts . | . . . Manual 6 | . 6 . Terminals 15 | . 15 . Fabricators . | . . . Repair Stations . | . . . Recycling Units . | . . . Scanalyzers . | . . . Garrison Access . | . . . Terminal Hacks 7 | . 7 . Robot Analysis 1 | . 1 . Branch Access Points 1 | . 1 . Alert Level 1 | . 1 . Unreport Threat 2 | . 2 . Locate Traps 1 | . 1 . Zone Layout 1 | . 1 . Fabricator Hacks . | . . . Repair Station Hacks . | . . . Recycling Unit Hacks . | . . . Scanalyzer . | . . . Garrison Access Hacks . | . . . Unauthorized Hacks 4 | . 4 . Terminals 4 | . 4 . Track 2 | . 2 . Botnet 2 | . 2 . Fabricators . | . . . Repair Stations . | . . . Recycling Units . | . . . Scanalyzers . | . . . Garrison Access . | . . . Data Cores Recovered . | . . . Used . | . . . Hacking Detections 5 | . 5 . Full Trace Events . | . . . Feedback Events . | . . . Feedback Blocked . | . . . Robot Schematics Acquired . | . . . Robots Built . | . . . Authchips . | . . . Time . | . . . Total Robot Build Rating . | . . . Part Schematics Acquired . | . . . Parts Built . | . . . Authchips . | . . . Time . | . . . Total Part Build Rating . | . . . Parts Repaired . | . . . Time . | . . . Parts Recycled . | . . . Recycled Matter . | . . . Retrieved Matter . | . . . Retrieved Components . | . . . Parts Scanalyzed . | . . . Part Schematics Acquired . | . . . Parts Damaged . | . . . Bothacking | -11 -10 -10 ------------ Run | Yrd Mat Sub Used RIF Installer . | . . . Robots Hacked . | . . . Non-combat . | . . . Combat . | . . . Robot Hacks Applied . | . . . Relay Couplers Released . | . . . Fabnet Peak Effective % . | . . . Robots Rewired . | . . . Allies Hacked . | . . . Hacks Repelled . | . . . Allies | -11 -10 -10 -------- Run | Yrd Mat Sub Total Allies . | . . . Largest Group . | . . . Highest-Rated Group . | . . . Highest-Rated Ally . | . . . Total Orders . | . . . Ally Attacks . | . . . Total Damage . | . . . Kills . | . . . Allies Corrupted . | . . . Allies Melted 1 | . . 1 Intel | -11 -10 -10 ------- Run | Yrd Mat Sub Robot Analysis Total 1 | . 1 . Derelict Logs Recovered 1 | . . 1 Drone Launches . | . . . Drone Recoveries . | . . . Exploration | -11 -10 -10 ------------- Run | Yrd Mat Sub Turns Passed 2024 | 93 1545 386 Spaces Moved 991 | 55 717 219 Core 11 | 11 . . Treads 899 | 44 636 219 Legs 2 | . 2 . Wheels 79 | . 79 . Hover . | . . . Flight . | . . . Fastest Speed 50 | 50 115 160 Average Speed 164 | 145 166 160 Slowest Speed 260 | 160 260 160 Overloaded Moves . | . . . Propulsion Burnouts . | . . . Robots Hopped . | . . . Cave-ins Triggered . | . . . Exploration Rate (%) 33 | 5 85 9 Regions Visited 2 Branch Regions 1 Pre-discovered Areas 2 | . . 2 Known Exits Taken . | . . . Unknown Exits Taken 2 | 1 1 . Scrap Searched . | . . . Spaces Dug . | . . . Terrain Destroyed 18 | . 18 . Melee . | . . . Projectile . | . . . AOE 18 | . 18 . Terrain Rammed . | . . . Walls Destroyed . | . . . Machines Disabled . | . . . Actions | -11 -10 -10 --------- Run | Yrd Mat Sub Total 1222 | 66 903 253 Wait 78 | . 52 26 Move 989 | 54 716 219 Hop . | . . . Pick Up 27 | 7 18 2 Fast Attach 11 | 5 5 1 Attach 5 | . 5 . Detach . | . . . Swap 5 | . 4 1 Drop 13 | . 11 2 Fire 94 | . 92 2 Melee . | . . . Ram . | . . . Kick . | . . . Crush . | . . . Escape Stasis . | . . . Rewire . | . . . Trap . | . . . Miscellaneous . | . . . Route ------- -11/Scrapyard -10/Materials (discovered 6 exits: [*Mat x3] / *Min x2 / [*Sub]) -10/Subcaves History --------- Turn | Location | Event 12 | -11/Scrapyard | Discovered new exit (range 15) 94 | -11/Scrapyard | Entered Materials 313 | -10/Materials | Build established: Mutant 604 | -10/Materials | Discovered new exit (range 16) 747 | -10/Materials | Identified exit to Mines 928 | -10/Materials | Core integrity fell below 50% 953 | -10/Materials | Core integrity fell below 20% 1074 | -10/Materials | Discovered new exit (range 13) 1289 | -10/Materials | Discovered new exit (range 4) 1637 | -10/Materials | Discovered new exit (range 2) 1639 | -10/Materials | Entered Subcaves 1691 | -10/Subcaves | Learned location of Zion (-6) 1691 | -10/Subcaves | Met a Zionite searching for "candidates" 1933 | -10/Subcaves | Ambushed by swarm of Subdwellers 2025 | -10/Subcaves | Destroyed by FG-MCO(R) with Subdweller Machine Gun Last Messages --------------- 01881_ HV Slug penetrates Wall. DX-Q4D(R) comes tumbling into view. 01933_ YJ-SY8(h): "The Subs are coming!" 01933_ HV Slug penetrates DX-Q4D(R). 01933_ DX-Q4D(R) suffers critical hit (Destroy). 01933_ DX-Q4D(R) destroyed. 01936_ YJ-SY8(h) suffers critical hit (Meltdown). 01937_ U8-ZUY(g): "Sorry we're late! Had another grouchy Sub to deal with. Who's the new fellow?" 01939_ TL-96U(R) emerges from the Twisted Machinery. 01939_ Imp. Ion Engine destroyed. 01958_ TL-96U(R) destroyed. 01964_ Acquired Sub. Power Source. 01967_ AI-CIF(R) destroyed. 01973_ Acquired 10 matter. 01989_ Dropped EM Pulse Gun. 01990_ Acquired Sub. Beam Cannon. Map ----- +----------------------------------------------------+ | ????????????????????????### ##??### ##?????? | | ????????????????????????## ####???### ###????? | | ????????????????????????## ####???### ###????? | | ????????????????????????## #####?#### ##????? | | ???????????????????????### !%&# ###### ##????? | | ???????????????????????##" % & ##### ##????? | | ???????????????????????## #### ### ##????? | | ???????????????????????## #### ## ###????? | | ???????????????????????## ##### ### ###????? | | ???????????????????????## "##### #### ##?????? | | ??????????????????????### ##### ## ##?????? | | ??????????????????????### ###### ##?????? | | ??????????????????????## ###?### ## ###?????? | | ??????????????????????### ##?#### ## ###?????? | | ??????????????????????### ###??## ### ##?????? | | ??????????????????????## ###??## ##?????? | | ??????????????????????### ###??#### # ###?????? | | ??????????????????????## ##??######## ###?????? | | ??????????????????????###*###????###### ##??????? | | ??????????????????????###&####??????### ##??????? | | ??????????????????????###&!###??????### ##??????? | | ??????????????????????##[g""##??????## ##??????? | | ??????????????????????##&g""##??????## ###?????? | | ??????????????????????###%#######???### ###?????? | | ??????????????????????###g############ ##?????? | | ??????????????????????##!@!#&&!####### ###?????? | | ??????????????????????###=&%R * #### ###?????? | | ??????????????????????#######![ ### ##??????? | | ???????????????????????######## #### ####??????? | | ???????????????????????????### ##### ###??????? | | ????????????????????????????### # ##???????? | | ????????????????????????????## ##???????? | | ????????????????????????????##### ## ##???????? | | ????????????????????????????###### # ###??????? | | ???????????????????????????????## ###??????? | | ???????????????????????????????### ##??????? | | ???????????????????????????????## # ##??????? | | ???????????????????????????????### # ##??????? | | ???????????????????????????????# ###??????? | | ??????????????????????????????? ####??????? | | ????????????????????????????? ########???????? | | ????????????????????????????? # #######????????? | | ?????????????????????????### ### ???????????????? | | ?????????????????????????## ? ### ??????????????? | | ?????????????????????????## ??#### ??????????????? | | ?????????????????????????## ???####??????????????? | | ?????????????????????????????????????????????????? | | ?????????????????????????????????????????????????? | | ?????????????????????????????????????????????????? | | ?????????????????????????????????????????????????? | +----------------------------------------------------+ Best States ------------- Heat Dissipation 25 Coolant Potential 50 Energy Generation 15 Energy Capacity 265 Matter Stores 300 Matter Capacity 300 Sight Range 16 Terrain Scan Density 10 Evasion (%) 40 Recoil Reduction 2 Item Schematics ----------------- None Robot Schematics ------------------ None Fabricated ------------ Nothing Alien Tech Used ----------------- None Achievements -------------- None Challenges ------------ None Game ------ Seed FissionArmorAxe Manual? 0 Play Time 00:23:12 Cumulative 355.2 hours Start 2024.08.25 @ 22:26:52 End 2024.08.25 @ 22:51:08 Sessions 1 Manual Loads 0 Difficulty Rogue Special Mode None Game No. 432 Rogue 432 Adventurer 0 Explorer 0 Win Type - Total 36 Types 26/0/7/3/0/0/0/0/0 Lore% 52 Gallery% 73 Achievement% 59 Wizard Run 0 Options --------- Layout 1 ASCII 0 Keyboard 1 Movement Numpad Keybinds 0 Fullscreen 1 Font 32/SmallcapsGlow Map View 50x35 Zoom Use 0% Tactical HUD 1 Map Filters NONE Filters NONE Steam 1 RUN: 9d282282-f327-4058-a0c9-463d63c90373